bitfinex/quotes_BTCUSD_20250330
["timestamp","ask_amount","ask_price","bid_price","bid_amount"]
[1743349313564,0.00080922,82985.0,82984.0,0.51098483]
[1743349314176,0.00180922,82985.0,82984.0,0.51098483]
[1743349315537,0.00180922,82985.0,82984.0,0.51198483]
[1743349316889,0.00180922,82985.0,82984.0,0.51098483]
[1743349317302,0.00080922,82985.0,82984.0,0.51298483]
[1743349317621,0.00080922,82985.0,82984.0,0.51398483]
[1743349318384,0.01968433,82985.0,82984.0,0.51398483]
[1743349319908,0.01968433,82985.0,82984.0,0.25606]
[1743349320133,0.01968433,82985.0,82984.0,0.39366]
[1743349323854,0.01968433,82985.0,82984.0,0.25606]
[1743349323989,0.01968433,82985.0,82984.0,0.39366]
[1743349326009,0.01968433,82985.0,82984.0,0.51394483]
[1743349328245,0.00080922,82985.0,82984.0,0.51394483]
[1743349328581,0.01968413,82985.0,82984.0,0.51394483]
[1743349334391,0.01968413,82985.0,82984.0,0.51094483]
[1743349334707,0.01968413,82985.0,82984.0,0.51594483]
[1743349336113,0.01968413,82985.0,82984.0,0.59504483]
[1743349336676,0.00080922,82985.0,82984.0,0.59504483]
[1743349336849,0.01968327,82985.0,82984.0,0.59504483]
[1743349337867,0.00080922,82985.0,82984.0,0.59504483]
[1743349338023,0.00080922,82985.0,82984.0,0.59004483]
[1743349338228,0.01968271,82985.0,82984.0,0.59204483]
[1743349338609,0.01968271,82985.0,82984.0,0.59604483]
[1743349338926,0.01968271,82985.0,82984.0,0.59204483]
[1743349339172,0.01968271,82985.0,82984.0,0.59804483]
[1743349339575,0.01968271,82985.0,82984.0,0.59604483]
[1743349339889,0.01968271,82985.0,82984.0,0.60004483]
[1743349343205,0.01968271,82985.0,82984.0,0.59604483]
[1743349343691,0.01968271,82985.0,82984.0,0.60104483]
[1743349344209,0.01968271,82985.0,82984.0,0.59504483]
[1743349344411,0.01968271,82985.0,82984.0,0.60104483]
[1743349350754,0.01968271,82985.0,82984.0,0.60100483]
[1743349352397,0.01968271,82985.0,82984.0,0.38434483]
[1743349352720,0.01968271,82985.0,82984.0,0.13128483]
[1743349352922,0.00080922,82985.0,82984.0,0.28089483]
[1743349353103,0.03863191,82985.0,82984.0,0.28089483]
[1743349353297,0.01968238,82985.0,82984.0,0.14333483]
[1743349353526,0.01968238,82985.0,82984.0,0.28089483]
[1743349353705,0.01968238,82985.0,82984.0,0.27589483]
[1743349353923,0.01968238,82985.0,82984.0,0.26384483]
[1743349354129,0.01968238,82985.0,82984.0,0.26284483]
[1743349354392,0.03863191,82985.0,82984.0,0.28089483]
[1743349354596,0.03863191,82985.0,82984.0,0.26884483]
[1743349354795,0.03863191,82985.0,82984.0,0.28089483]
[1743349357348,0.03863191,82985.0,82984.0,0.50985483]
[1743349357482,0.03863191,82985.0,82984.0,0.52190483]
[1743349357683,0.01968238,82985.0,82984.0,0.37834483]
[1743349357884,0.01968238,82985.0,82984.0,0.26284483]
[1743349358097,0.10511749,82985.0,82984.0,0.14856]
[1743349358502,0.03862427,82985.0,82984.0,0.13756]
[1743349358727,0.03862427,82985.0,82984.0,0.14256]
[1743349358925,0.03862427,82985.0,82984.0,0.14656]
[1743349359131,0.03862427,82985.0,82984.0,0.14156]
[1743349359333,0.03862427,82985.0,82984.0,0.14056]
[1743349359731,0.03862427,82985.0,82984.0,0.13856]
[1743349360178,0.05067427,82985.0,82984.0,0.13856]
[1743349360382,0.12657427,82985.0,82984.0,0.13856]
[1743349360776,0.10770111,82985.0,82984.0,0.13856]
[1743349361332,0.09565111,82985.0,82984.0,0.13856]
[1743349362848,0.75295811,82985.0,82984.0,0.13856]
[1743349363014,0.76500811,82985.0,82984.0,0.13856]
[1743349364146,0.52400111,82985.0,82984.0,0.13856]
[1743349364708,0.51195111,82985.0,82984.0,0.13856]
[1743349366290,0.52400111,82985.0,82984.0,0.13856]
[1743349370757,0.51195111,82985.0,82984.0,0.13856]
[1743349372563,0.52400111,82985.0,82984.0,0.13856]
[1743349374426,0.51195111,82985.0,82984.0,0.13856]
[1743349374600,0.51195111,82985.0,82984.0,0.001]
[1743349374903,0.51195111,82985.0,82984.0,0.13856]
[1743349377166,0.52400111,82985.0,82984.0,0.13856]
[1743349380053,0.5428767,82985.0,82984.0,0.13856]
[1743349380793,0.4669767,82985.0,82984.0,0.13856]
[1743349380927,0.4669767,82985.0,82984.0,0.001]
[1743349381142,0.4669767,82985.0,82984.0,0.13856]
[1743349389830,0.44810111,82985.0,82984.0,0.13856]
[1743349390030,0.46697656,82985.0,82984.0,0.13856]
[1743349390989,0.48961197,82985.0,82984.0,0.13856]
[1743349391919,0.86731197,82985.0,82984.0,0.001]
[1743349392169,1.04983765,82985.0,82984.0,0.001]
[1743349392314,1.04983765,82985.0,82947.0,0.0459]
[1743349392315,0.253145,82956.0,82947.0,0.0459]
[1743349392516,0.253145,82956.0,82955.0,0.1377285]
[1743349392726,0.241088,82958.0,82955.0,0.1377285]
[1743349392915,0.01860329,82956.0,82955.0,0.0001685]
[1743349393119,0.03748351,82956.0,82955.0,0.1377285]
[1743349393286,0.04151563,82956.0,82955.0,0.1377285]
[1743349393481,0.06013319,82956.0,82955.0,0.1407285]
[1743349393881,0.06018037,82956.0,82955.0,0.1447285]
[1743349394908,0.03754496,82956.0,82955.0,0.1447285]
[1743349395788,0.03754496,82956.0,82955.0,0.1407285]
[1743349395965,0.03754496,82956.0,82955.0,0.1447285]
[1743349396322,0.04993232,82956.0,82955.0,0.1447285]
[1743349397217,0.07249532,82956.0,82955.0,0.1447285]
[1743349402339,0.04993232,82956.0,82955.0,0.1447285]
[1743349403494,0.03754496,82956.0,82955.0,0.3978765]
[1743349403695,0.0189274,82956.0,82955.0,0.3978765]
[1743349404328,0.04145697,82956.0,82955.0,0.3978765]
[1743349407361,0.0189274,82956.0,82955.0,0.3978765]
[1743349410198,0.03755241,82956.0,82955.0,0.3978765]
[1743349410409,0.03755241,82956.0,82955.0,0.2603165]
[1743349410638,0.06008375,82956.0,82955.0,0.3979165]
[1743349413183,0.11671833,82956.0,82955.0,0.3979165]
[1743349413575,0.06008375,82956.0,82955.0,0.3979165]
[1743349414138,0.06008375,82956.0,82955.0,0.51820133]
[1743349414598,0.04145874,82956.0,82955.0,0.51820133]
[1743349417081,0.02257852,82956.0,82955.0,0.51820133]
[1743349417696,0.02257852,82956.0,82955.0,0.63751314]
[1743349418514,4.718e-05,82956.0,82955.0,0.63751314]
[1743349419036,4.718e-05,82956.0,82955.0,0.68261314]
[1743349422350,4.718e-05,82956.0,82955.0,0.54501314]
[1743349422548,4.718e-05,82956.0,82955.0,0.68257314]
[1743349423890,4.718e-05,82956.0,82955.0,0.80967314]
[1743349424087,4.718e-05,82956.0,82955.0,0.68257314]
[1743349431202,4.718e-05,82956.0,82955.0,0.67069317]
[1743349432003,4.718e-05,82956.0,82955.0,0.68298899]
[1743349434708,4.718e-05,82956.0,82955.0,1.25670899]
[1743349435756,4.718e-05,82956.0,82955.0,1.11914899]
[1743349435957,4.718e-05,82956.0,82955.0,1.25666899]
[1743349436351,4.718e-05,82956.0,82955.0,1.25366899]
[1743349436566,4.718e-05,82956.0,82955.0,1.24966899]
[1743349436739,1.8e-07,82956.0,82955.0,1.25966899]
[1743349436937,1.8e-07,82956.0,82955.0,1.56566899]
[1743349437335,1.8e-07,82956.0,82955.0,1.58020984]
[1743349437881,1.8e-07,82956.0,82955.0,1.57520984]
[1743349438099,1.8e-07,82956.0,82955.0,1.56920984]
[1743349438290,1.8e-07,82956.0,82955.0,1.57520984]
[1743349438607,1.8e-07,82956.0,82955.0,1.58120984]
[1743349442080,1.8e-07,82956.0,82955.0,1.56920984]
[1743349442294,1.8e-07,82956.0,82955.0,1.96851048]
[1743349442497,1.8e-07,82956.0,82955.0,1.97451048]
[1743349442795,1.8e-07,82956.0,82955.0,1.98051048]
[1743349445144,1.8e-07,82956.0,82955.0,1.61873924]
[1743349449860,1.8e-07,82956.0,82955.0,1.98051048]
[1743349451912,1.8e-07,82956.0,82955.0,2.10761048]
[1743349452548,1.8e-07,82956.0,82955.0,1.98051048]
[1743349452953,0.00033738,82956.0,82955.0,1.98051048]
[1743349453336,3.8e-07,82956.0,82955.0,1.98051048]
[1743349454366,3.8e-07,82956.0,82955.0,2.10761048]
[1743349454574,3.8e-07,82956.0,82955.0,1.98051048]
[1743349455793,3.8e-07,82956.0,82955.0,1.69514963]
[1743349456217,3.8e-07,82956.0,82955.0,1.82033381]
[1743349456391,3.8e-07,82956.0,82955.0,1.78280441]
[1743349457210,3.8e-07,82956.0,82955.0,1.34532441]
[1743349457438,3.8e-07,82956.0,82955.0,1.48280441]
[1743349459596,3.8e-07,82956.0,82955.0,1.49517443]
[1743349463169,3.8e-07,82956.0,82955.0,1.5328113]
[1743349468370,0.07286062,82971.0,82970.0,0.253102]
[1743349468567,0.07286062,82971.0,82970.0,0.51086683]
[1743349469597,0.07286062,82971.0,82970.0,0.51386683]
[1743349469792,0.07286062,82971.0,82970.0,0.51886683]
[1743349470225,0.09173695,82971.0,82970.0,0.51886683]
[1743349472962,0.09173695,82971.0,82970.0,1.09254683]
[1743349473591,0.09173695,82971.0,82970.0,1.11701502]
[1743349474650,0.01887633,82971.0,82970.0,1.11701502]
[1743349475128,0.01887633,82971.0,82970.0,1.09254683]
[1743349475871,0.01887633,82971.0,82970.0,0.95506683]
[1743349476095,0.01887633,82971.0,82970.0,1.09288403]
[1743349476249,0.01904493,82971.0,82970.0,1.09288403]
[1743349476782,0.0001686,82971.0,82970.0,1.09288403]
[1743349478687,0.1255686,82971.0,82970.0,1.09288403]
[1743349478887,0.14817483,82971.0,82970.0,1.08488403]
[1743349479087,0.14817483,82971.0,82970.0,1.08688403]
[1743349479290,0.14817483,82971.0,82970.0,1.08988403]
[1743349479687,0.14817483,82971.0,82970.0,0.7164972]
[1743349479895,0.18586764,82971.0,82970.0,0.7164972]
[1743349480305,0.18586764,82971.0,82970.0,0.9575472]
[1743349480669,0.18586764,82971.0,82970.0,0.9695992]
[1743349481042,0.16705198,82971.0,82970.0,0.9695992]
[1743349481269,0.16705198,82971.0,82970.0,0.9675992]
[1743349481465,0.18586764,82971.0,82970.0,0.9675992]
[1743349481644,0.18586764,82971.0,82970.0,0.9695992]
[1743349482174,0.18586764,82971.0,82970.0,0.9665992]
[1743349482626,0.18586764,82971.0,82970.0,0.8321192]
[1743349482835,0.18586764,82971.0,82970.0,0.9695992]
[1743349485240,0.18586764,82971.0,82970.0,1.08988403]
[1743349486597,0.16699049,82971.0,82970.0,1.08988403]
[1743349490107,0.18586816,82971.0,82970.0,1.08988403]
[1743349490710,0.16699049,82971.0,82970.0,1.08988403]
[1743349491214,0.16699049,82971.0,82970.0,0.7164972]
[1743349491414,0.16699049,82971.0,82970.0,0.7285492]
[1743349492371,0.04159049,82971.0,82970.0,0.84883403]
[1743349492872,0.02277483,82971.0,82970.0,0.84883403]
[1743349493680,0.0001686,82971.0,82970.0,0.84883403]
[1743349497357,0.0001686,82971.0,82970.0,0.84683403]
[1743349497714,0.0001686,82971.0,82970.0,0.84883403]
[1743349498430,0.0001686,82971.0,82970.0,0.84683403]
[1743349498666,0.0001686,82971.0,82970.0,0.84383403]
[1743349498848,0.0001686,82971.0,82970.0,0.84683403]
[1743349499141,0.0001686,82971.0,82970.0,0.84983403]
[1743349499484,0.0001686,82971.0,82970.0,0.84683403]
[1743349499840,0.0001686,82971.0,82970.0,0.85083403]
[1743349500554,0.0798686,82971.0,82970.0,0.70130203]
[1743349500704,0.0798686,82971.0,82970.0,0.85079403]
[1743349502603,0.0798686,82971.0,82970.0,0.84679403]
[1743349502604,0.0001686,82971.0,82970.0,0.84679403]
[1743349502810,0.0001686,82971.0,82970.0,0.84379403]
[1743349503016,0.0001686,82971.0,82970.0,0.85079403]
[1743349503645,0.0001686,82971.0,82970.0,0.84679403]
[1743349503937,0.0001686,82971.0,82970.0,0.85179403]
[1743349504281,0.0001686,82971.0,82970.0,0.84879403]
[1743349504482,0.0001686,82971.0,82970.0,0.85179403]
[1743349507743,0.0001686,82971.0,82970.0,0.71435403]
[1743349507948,0.0001686,82971.0,82970.0,0.85179403]
[1743349508142,0.0001686,82971.0,82970.0,0.71435403]
[1743349508348,0.0001686,82971.0,82970.0,0.85179403]
[1743349509129,0.0001686,82971.0,82970.0,0.84679403]
[1743349509602,0.0001686,82971.0,82970.0,0.85179403]
[1743349510413,0.0001686,82971.0,82970.0,0.84879403]
[1743349510746,0.0001686,82971.0,82970.0,0.85279403]
[1743349512027,0.0001686,82971.0,82970.0,0.71535403]
[1743349512252,0.0001686,82971.0,82970.0,0.85279403]
[1743349513939,0.0001686,82971.0,82970.0,0.84779403]
[1743349514300,0.0001686,82971.0,82970.0,0.84379403]
[1743349515270,0.0001686,82971.0,82970.0,0.85279403]
[1743349515485,0.0001686,82971.0,82970.0,0.71535403]
[1743349515697,0.02235497,82971.0,82970.0,0.5830172]
[1743349515904,0.4430206,82971.0,82970.0,0.5830172]
[1743349516106,0.90461858,82971.0,82970.0,0.0093372]
[1743349516307,0.91349699,82971.0,82970.0,0.0093372]
[1743349516537,0.012054,82960.0,82959.0,0.1374]
[1743349516743,0.11294621,82960.0,82959.0,0.1374]
[1743349517929,0.35402621,82960.0,82959.0,0.1374]
[1743349518129,0.35402621,82960.0,82959.0,0.1394]
[1743349518978,0.35402621,82960.0,82959.0,0.1424]
[1743349519314,0.40445501,82960.0,82959.0,0.1424]
[1743349521177,0.56762101,82960.0,82959.0,0.1424]
[1743349521388,0.53607215,82960.0,82959.0,0.152454]
[1743349521594,0.45377215,82960.0,82959.0,0.27373883]
[1743349522171,0.45377215,82960.0,82959.0,0.51182083]
[1743349522580,0.45377215,82960.0,82959.0,0.51482083]
[1743349523280,0.45377215,82960.0,82959.0,0.51498943]
[1743349525382,0.03747215,82960.0,82959.0,0.51498943]
[1743349525589,0.01887994,82960.0,82959.0,0.51498943]
[1743349526533,0.0001686,82971.0,82970.0,0.253102]
[1743349526838,0.00024821,82971.0,82970.0,0.37338683]
[1743349527872,0.00124821,82971.0,82970.0,0.37338683]
[1743349529665,0.0199006,82971.0,82970.0,0.37338683]
[1743349529863,0.00124821,82971.0,82970.0,0.37338683]
[1743349530074,0.02012583,82971.0,82970.0,0.37338683]
[1743349530655,0.01912583,82971.0,82970.0,0.37338683]
[1743349531001,0.02012583,82971.0,82970.0,0.37338683]
[1743349533103,0.02012583,82971.0,82970.0,0.37638683]
[1743349533733,0.01912583,82971.0,82970.0,0.37638683]
[1743349534095,0.01912583,82971.0,82970.0,0.37838683]
[1743349535375,0.01912583,82971.0,82970.0,0.95210683]
[1743349535619,0.00024821,82971.0,82970.0,0.95210683]
[1743349536461,0.00024821,82971.0,82970.0,0.95227533]
[1743349538042,0.00024821,82971.0,82970.0,1.08967533]
[1743349538242,0.00024821,82971.0,82970.0,0.69917333]
[1743349538445,0.05638742,82971.0,82970.0,0.69917333]
[1743349538652,0.05638742,82971.0,82970.0,0.7162885]
[1743349539072,0.07526513,82971.0,82970.0,0.7162885]
[1743349539475,0.07526513,82971.0,82970.0,0.7132885]
[1743349539815,0.07526513,82971.0,82970.0,0.7162885]
[1743349540048,0.03787931,82971.0,82970.0,0.7162885]
[1743349540423,0.03787931,82971.0,82970.0,0.7142885]
[1743349540695,0.03887931,82971.0,82970.0,0.7142885]
[1743349540903,0.03887931,82971.0,82970.0,0.7112885]
[1743349544744,0.03887931,82971.0,82970.0,0.1375685]
[1743349546622,0.2731016,82971.0,82970.0,0.1375685]
[1743349547203,0.2731016,82971.0,82970.0,0.0001685]
[1743349547415,0.0200016,82971.0,82970.0,0.1375685]
[1743349547771,0.0200016,82971.0,82970.0,0.1496205]
[1743349549468,0.0200016,82971.0,82970.0,0.26990533]
[1743349549660,0.00124821,82971.0,82970.0,0.26990533]
[1743349550107,0.02012494,82971.0,82970.0,0.26990533]
[1743349550896,0.01912494,82971.0,82970.0,0.26990533]
[1743349551266,0.01912494,82971.0,82970.0,0.2943781]
[1743349552697,0.01912494,82971.0,82970.0,0.2963781]
[1743349553360,0.01912494,82971.0,82970.0,0.2973781]
[1743349556567,0.00024821,82971.0,82970.0,0.2973781]
[1743349559329,0.00024821,82971.0,82970.0,0.8710581]
[1743349561400,0.00024821,82971.0,82970.0,0.84658533]
[1743349564545,0.00024821,82971.0,82970.0,0.87122747]
[1743349564901,0.00024821,82971.0,82970.0,0.99712747]
[1743349565504,0.00024821,82971.0,82970.0,0.99512747]
[1743349565971,0.00024821,82971.0,82970.0,1.00112747]
[1743349566378,0.00024821,82971.0,82970.0,1.00012747]
[1743349566896,0.00024821,82971.0,82970.0,1.00412747]
[1743349567018,0.00024821,82971.0,82970.0,1.30912747]
[1743349567019,2.1e-07,82971.0,82970.0,1.30912747]
[1743349567218,2.1e-07,82971.0,82970.0,1.32366832]
[1743349567985,2.1e-07,82971.0,82970.0,1.31366832]
[1743349568414,2.1e-07,82971.0,82970.0,1.31966832]
[1743349568731,2.1e-07,82971.0,82970.0,1.68143956]
[1743349569135,4.1e-07,82985.0,82984.0,0.25306]
[1743349569359,0.00047226,82985.0,82984.0,0.58700483]
[1743349569604,0.00047226,82985.0,82984.0,0.88700483]
[1743349569766,0.00047226,82985.0,82984.0,0.94160483]
[1743349571007,0.00047226,82985.0,82984.0,0.94560483]
[1743349571303,0.00047226,82985.0,82984.0,0.96934443]
[1743349571612,0.00047226,82985.0,82984.0,1.18975567]
[1743349571772,0.00047226,82985.0,82984.0,1.25681567]
[1743349572558,7.6e-07,82986.0,82985.0,0.01705]
[1743349572768,3.3e-07,82986.0,82985.0,0.51485342]
[1743349572982,3.3e-07,82986.0,82985.0,0.52817568]
[1743349574191,3.3e-07,82986.0,82985.0,0.53317568]
[1743349574392,3.3e-07,82986.0,82985.0,0.98607568]
[1743349574561,3.3e-07,82986.0,82985.0,0.99207568]
[1743349574762,3.3e-07,82986.0,82985.0,0.99807568]
[1743349575103,3.3e-07,82986.0,82985.0,0.99207568]
[1743349575304,3.3e-07,82986.0,82985.0,0.99807568]
[1743349575662,3.3e-07,82986.0,82985.0,0.99207568]
[1743349575859,3.3e-07,82986.0,82985.0,0.98607568]
[1743349576093,3.3e-07,82986.0,82985.0,0.99207568]
[1743349576480,3.3e-07,82986.0,82985.0,1.00121163]
[1743349576816,3.3e-07,82986.0,82985.0,1.00721163]
[1743349578067,3.3e-07,82986.0,82985.0,1.27999078]
[1743349578441,3.3e-07,82986.0,82985.0,1.14267078]
[1743349578704,3.3e-07,82986.0,82985.0,1.27999078]
[1743349579702,3.3e-07,82986.0,82985.0,1.29453163]
[1743349582682,3.3e-07,82986.0,82985.0,1.29486863]
[1743349582808,3.3e-07,82986.0,82985.0,1.86830863]
[1743349583013,0.00016883,82986.0,82985.0,1.86830863]
[1743349583653,8.3e-07,82986.0,82985.0,1.86830863]
[1743349585924,8.3e-07,82986.0,82985.0,1.85376778]
[1743349587490,8.3e-07,82986.0,82985.0,1.86830863]
[1743349589879,8.3e-07,82986.0,82985.0,1.86230863]
[1743349590016,8.3e-07,82986.0,82985.0,1.98680863]
[1743349590225,8.3e-07,82986.0,82985.0,2.23007987]
[1743349591330,8.3e-07,82986.0,82985.0,2.22407987]
[1743349591536,8.3e-07,82986.0,82985.0,2.08675987]
[1743349591688,8.3e-07,82986.0,82985.0,2.21549902]
[1743349591890,8.3e-07,82986.0,82985.0,2.07821902]
[1743349592085,8.3e-07,82986.0,82985.0,2.08839902]
[1743349592680,8.3e-07,82986.0,82985.0,1.92926307]
[1743349592885,8.3e-07,82986.0,82985.0,1.25549183]
[1743349593197,8.3e-07,82986.0,82985.0,1.62326307]
[1743349593406,8.3e-07,82986.0,82985.0,1.62926307]
[1743349593767,8.3e-07,82986.0,82985.0,1.62326307]
[1743349594868,8.3e-07,82986.0,82985.0,1.62926307]
[1743349597330,8.3e-07,82986.0,82985.0,1.21716307]
[1743349600847,8.3e-07,82986.0,82985.0,1.52216307]
[1743349601058,8.3e-07,82986.0,82985.0,1.63978322]
[1743349601302,8.3e-07,82986.0,82985.0,1.65432407]
[1743349602834,8.3e-07,82986.0,82985.0,1.55968322]
[1743349607138,8.3e-07,82986.0,82985.0,1.43691198]
[1743349607336,8.3e-07,82986.0,82985.0,1.19791198]
[1743349608117,8.3e-07,82986.0,82985.0,1.21245283]
[1743349610609,8.3e-07,82986.0,82985.0,1.57422407]
[1743349617331,8.3e-07,82986.0,82985.0,1.42240322]
[1743349617450,8.3e-07,82986.0,82985.0,1.70968322]
[1743349619634,8.3e-07,82986.0,82985.0,1.56740322]
[1743349619839,0.07690083,82986.0,82985.0,1.41740322]
[1743349619989,0.07690083,82986.0,82985.0,1.55468322]
[1743349620213,8.3e-07,82986.0,82985.0,1.55468322]
[1743349624058,8.3e-07,82986.0,82985.0,1.51716307]
[1743349624457,8.3e-07,82986.0,82985.0,1.21716307]
[1743349624458,0.08090083,82986.0,82985.0,1.21716307]
[1743349625043,0.08090083,82986.0,82985.0,1.09439183]
[1743349625361,0.08090083,82986.0,82985.0,0.84939183]
[1743349625804,0.08090083,82986.0,82985.0,0.85439183]
[1743349627215,8.3e-07,82986.0,82985.0,0.84839183]
[1743349627427,8.3e-07,82986.0,82985.0,0.85339183]
[1743349627599,8.3e-07,82986.0,82985.0,0.85739183]
[1743349628343,8.3e-07,82986.0,82985.0,0.84839183]
[1743349628637,8.3e-07,82986.0,82985.0,0.85439183]
[1743349628936,8.3e-07,82986.0,82985.0,0.86039183]
[1743349629527,8.3e-07,82986.0,82985.0,0.89797259]
[1743349630151,8.3e-07,82986.0,82985.0,1.21251344]
[1743349630942,8.3e-07,82986.0,82985.0,1.20651344]
[1743349631148,8.3e-07,82986.0,82985.0,1.21251344]
[1743349631363,8.3e-07,82986.0,82985.0,1.20651344]
[1743349631775,8.3e-07,82986.0,82985.0,1.21251344]
[1743349632636,8.3e-07,82986.0,82985.0,1.19797259]
[1743349634443,8.3e-07,82986.0,82985.0,1.34297259]
[1743349634820,8.3e-07,82986.0,82985.0,1.34797259]
[1743349635037,8.3e-07,82986.0,82985.0,1.34871099]
[1743349635595,8.3e-07,82986.0,82985.0,1.36325184]
[1743349644852,0.0001687,83005.0,83002.0,0.15]
[1743349644853,9.3e-07,83005.0,83002.0,0.15]
[1743349645057,9.3e-07,83005.0,83004.0,1.00298383]
[1743349645058,4.807e-05,83005.0,83004.0,1.00298383]
[1743349645269,4.807e-05,83005.0,83004.0,1.57638383]
[1743349646014,4.807e-05,83005.0,83004.0,1.58859077]
[1743349647015,4.807e-05,83005.0,83004.0,1.63014861]
[1743349647301,4.807e-05,83005.0,83004.0,1.59259077]
[1743349647811,4.807e-05,83005.0,83004.0,1.59759077]
[1743349648113,4.807e-05,83005.0,83004.0,1.63514066]
[1743349648267,4.807e-05,83005.0,83004.0,1.59759077]
[1743349649592,4.807e-05,83005.0,83004.0,1.62177491]
[1743349650883,4.807e-05,83005.0,83004.0,1.61677491]
[1743349651288,4.807e-05,83005.0,83004.0,1.61877491]
[1743349651482,4.807e-05,83005.0,83004.0,1.46056797]
[1743349651657,4.807e-05,83005.0,83004.0,1.59780797]
[1743349652947,4.807e-05,83005.0,83004.0,1.46056797]
[1743349653153,0.12674807,83005.0,83004.0,1.59780797]
[1743349654273,0.12674807,83005.0,83004.0,1.43038383]
[1743349654476,0.12674807,83005.0,83004.0,1.56362383]
[1743349654647,0.12674807,83005.0,83004.0,1.56862383]
[1743349654878,0.12674807,83005.0,83004.0,1.57262383]
[1743349655082,0.12674807,83005.0,83004.0,0.8224]
[1743349655291,0.16562063,83005.0,83004.0,0.95964]
[1743349655498,0.46562063,83005.0,83004.0,0.8174]
[1743349655701,0.47577227,83005.0,83004.0,0.95464]
[1743349655818,0.47577227,83005.0,83004.0,0.95864]
[1743349656020,0.47577227,83005.0,83004.0,0.95464]
[1743349656423,0.47577227,83005.0,83004.0,0.95764]
[1743349656669,0.47577227,83005.0,83004.0,0.95464]
[1743349657073,0.47577227,83005.0,83004.0,0.95064]
[1743349657074,0.46121072,83005.0,83004.0,0.95064]
[1743349657299,0.46121072,83005.0,83004.0,0.95364]
[1743349657902,0.46121072,83005.0,83004.0,0.95064]
[1743349658132,0.44894671,83005.0,83004.0,0.95064]
[1743349658336,0.43689971,83005.0,83004.0,0.95064]
[1743349659031,0.67784871,83005.0,83004.0,0.95064]
[1743349659184,0.43689971,83005.0,83004.0,0.95064]
[1743349659581,0.45577057,83005.0,83004.0,0.95064]
[1743349659806,0.46781757,83005.0,83004.0,0.95064]
[1743349664919,0.88411757,83005.0,83004.0,0.95064]
[1743349665129,0.88411757,83005.0,83004.0,0.950977]
[1743349666536,0.86524671,83005.0,83004.0,0.950977]
[1743349667045,0.85319971,83005.0,83004.0,0.950977]
[1743349669590,0.8720705,83005.0,83004.0,0.950977]
[1743349670153,1.00440233,83005.0,83004.0,0.950977]
[1743349670563,0.8841175,83005.0,83004.0,0.950977]
[1743349674046,0.8841175,83005.0,83004.0,0.377577]
[1743349676578,0.86524671,83005.0,83004.0,0.377577]
[1743349677427,0.85319971,83005.0,83004.0,0.377577]
[1743349677809,0.85319971,83005.0,83004.0,0.50990883]
[1743349677810,0.42649971,83005.0,83004.0,0.50990883]
[1743349679635,0.44537009,83005.0,83004.0,0.50990883]
[1743349682335,0.02907009,83005.0,83004.0,0.50990883]
[1743349682744,0.01891845,83005.0,83004.0,0.50990883]
[1743349682977,0.01891845,83005.0,83004.0,0.58650883]
[1743349683149,0.01891845,83005.0,83004.0,0.63580883]
[1743349684990,0.01891845,83005.0,83004.0,0.63780883]
[1743349685221,7e-08,83005.0,83004.0,0.63780883]
[1743349685440,7e-08,83005.0,83004.0,0.63580883]
[1743349685859,7e-08,83005.0,83004.0,0.63880883]
[1743349686241,7e-08,83005.0,83004.0,0.63580883]
[1743349686674,7e-08,83005.0,83004.0,0.63980883]
[1743349686941,7e-08,83005.0,83004.0,0.63880883]
[1743349687177,7e-08,83005.0,83004.0,0.64080883]
[1743349688462,7e-08,83005.0,83004.0,0.63580883]
[1743349688849,7e-08,83005.0,83004.0,0.64580883]
[1743349690107,0.00016867,83005.0,83004.0,0.64580883]
[1743349690975,0.00016867,83005.0,83004.0,0.56920883]
[1743349691224,0.00016867,83005.0,83004.0,0.38266883]
[1743349691451,0.00016867,83005.0,83004.0,0.51986883]
[1743349694169,0.00016867,83005.0,83004.0,1.09326883]
[1743349696725,0.00016867,83005.0,83004.0,1.28946883]
[1743349697471,0.00016867,83005.0,83004.0,1.28346883]
[1743349697802,0.00016867,83005.0,83004.0,1.28946883]
[1743349698045,0.00016867,83005.0,83004.0,1.36726883]
[1743349698821,6.7e-07,83005.0,83004.0,1.36226883]
[1743349699183,6.7e-07,83005.0,83004.0,1.36826883]
[1743349700345,6.7e-07,83005.0,83004.0,1.37426883]
[1743349700548,6.7e-07,83005.0,83004.0,1.36826883]
[1743349702061,6.7e-07,83005.0,83004.0,1.37426883]
[1743349706425,6.7e-07,83005.0,83004.0,1.73554007]
[1743349706827,6.7e-07,83005.0,83004.0,2.03554007]
[1743349713259,6.7e-07,83005.0,83004.0,2.05008092]
[1743349713463,6.7e-07,83005.0,83004.0,2.08761917]
[1743349715220,6.7e-07,83005.0,83004.0,1.72634793]
[1743349718269,3.7e-07,83017.0,83016.0,0.252962]
[1743349718496,3.7e-07,83017.0,83016.0,0.61294683]
[1743349719531,3.7e-07,83017.0,83016.0,0.61594683]
[1743349720080,3.7e-07,83017.0,83016.0,0.62094683]
[1743349723037,3.7e-07,83017.0,83016.0,1.2189344]
[1743349724105,3.7e-07,83019.0,83018.0,0.252956]
[1743349724222,3.7e-07,83019.0,83018.0,0.81040083]
[1743349725526,3.7e-07,83019.0,83018.0,0.81930692]
[1743349725850,3.7e-07,83019.0,83018.0,0.86830692]
[1743349726291,3.7e-07,83019.0,83018.0,0.87330692]
[1743349726500,3.7e-07,83019.0,83018.0,0.91591859]
[1743349726827,0.0003372,83030.0,83029.0,0.252922]
[1743349726828,1.7e-07,83030.0,83029.0,0.252922]
[1743349726947,1.7e-07,83030.0,83029.0,0.61320683]
[1743349727152,7.969e-05,83030.0,83029.0,0.61320683]
[1743349728191,7.969e-05,83030.0,83029.0,0.61620683]
[1743349728838,7.969e-05,83030.0,83029.0,0.62852488]
[1743349729215,7.969e-05,83030.0,83029.0,0.63052488]
[1743349733594,7.969e-05,83030.0,83029.0,0.62752488]
[1743349733824,7.969e-05,83030.0,83029.0,0.63252488]
[1743349734033,7.969e-05,83030.0,83029.0,0.65630683]
[1743349734467,7.969e-05,83030.0,83029.0,0.65430683]
[1743349735288,7.969e-05,83030.0,83029.0,1.01557807]
[1743349735516,8.9e-07,83032.0,83031.0,0.252916]
[1743349735682,8.9e-07,83032.0,83031.0,0.37320083]
[1743349735897,8.9e-07,83032.0,83031.0,0.67320083]
[1743349737107,8.9e-07,83032.0,83031.0,0.67920083]
[1743349737863,8.9e-07,83032.0,83031.0,0.68420083]
[1743349738765,8.9e-07,83032.0,83031.0,0.82132083]
[1743349738966,0.08150089,83032.0,83031.0,0.38420083]
[1743349739138,0.12830089,83032.0,83031.0,0.52132083]
[1743349739557,0.1471633,83032.0,83031.0,0.52132083]
[1743349739947,0.1471633,83032.0,83031.0,0.51532083]
[1743349740153,0.1471633,83032.0,83031.0,0.51932083]
[1743349741356,0.1471633,83032.0,83031.0,0.51432083]
[1743349741944,0.1471633,83032.0,83031.0,0.51732083]
[1743349743383,0.1003633,83032.0,83031.0,0.51732083]
[1743349743581,0.0188633,83032.0,83031.0,0.51732083]
[1743349744363,8.9e-07,83032.0,83031.0,0.51732083]
[1743349745593,8.9e-07,83032.0,83031.0,0.51332083]
[1743349746132,8.9e-07,83032.0,83031.0,0.51832083]
[1743349746336,8.9e-07,83032.0,83031.0,0.51032083]
[1743349746757,8.9e-07,83032.0,83031.0,0.51832083]
[1743349746914,8.9e-07,83032.0,83031.0,0.51532083]
[1743349748414,8.9e-07,83032.0,83031.0,0.51932083]